[Event "Late-Titled-Tuesday-Blitz-March-05-2024"]
[Site "Chess.com"]
[Date "2024.03.05"]
[Round "5"]
[White "steepedgames"]
[Black "Nick12772"]
[Result "1-0"]
[WhiteElo "2540"]
[BlackElo "2399"]
[TimeControl "180+1"]
[EndTime "14:56:23 PST"]
[Termination "steepedgames won by resignation"]

1. d4 {[%clk 0:03:00.9]} 1... Nf6 {[%clk 0:02:59.5]} 2. Bg5 {[%clk 0:02:59.6]}
2... d5 {[%clk 0:02:59.2]} 3. Nf3 {[%clk 0:02:57.8]} 3... Nbd7 {[%clk
0:02:55.7]} 4. c4 {[%clk 0:02:56.3]} 4... c6 {[%clk 0:02:54.1]} 5. Nc3 {[%clk
0:02:56.4]} 5... g6 {[%clk 0:02:51.4]} 6. e3 {[%clk 0:02:55.1]} 6... Bg7 {[%clk
0:02:51.5]} 7. Bd3 {[%clk 0:02:52.9]} 7... O-O {[%clk 0:02:51.3]} 8. O-O {[%clk
0:02:53]} 8... b6 {[%clk 0:02:47]} 9. Rc1 {[%clk 0:02:49.2]} 9... Bb7 {[%clk
0:02:47.2]} 10. cxd5 {[%clk 0:02:47.3]} 10... cxd5 {[%clk 0:02:48.1]} 11. Qa4
{[%clk 0:02:38.6]} 11... Ne4 {[%clk 0:02:44]} 12. Bh4 {[%clk 0:02:26.7]} 12...
Nxc3 {[%clk 0:02:40.5]} 13. Rxc3 {[%clk 0:02:25.7]} 13... Nf6 {[%clk 0:02:38.8]}
14. Rfc1 {[%clk 0:02:20.4]} 14... Rc8 {[%clk 0:02:37.9]} 15. Rxc8 {[%clk
0:02:17.8]} 15... Bxc8 {[%clk 0:02:38.8]} 16. Qxa7 {[%clk 0:02:17.1]} 16... h6
{[%clk 0:02:18.3]} 17. Rc7 {[%clk 0:02:09.2]} 17... g5 {[%clk 0:02:18.3]} 18.
Bg3 {[%clk 0:02:08.7]} 18... Ne8 {[%clk 0:02:00.2]} 19. Rc1 {[%clk 0:01:40.3]}
19... Nd6 {[%clk 0:01:49.5]} 20. Qc7 {[%clk 0:01:36.3]} 20... Bg4 {[%clk
0:01:33.4]} 21. Bxd6 {[%clk 0:01:31.9]} 21... exd6 {[%clk 0:01:24.2]} 22. Qxd8
{[%clk 0:01:30.4]} 22... Rxd8 {[%clk 0:01:25.1]} 23. Nd2 {[%clk 0:01:30.2]}
23... Rd7 {[%clk 0:01:09.4]} 24. Bb5 {[%clk 0:01:17]} 24... Rb7 {[%clk
0:01:05.1]} 25. a4 {[%clk 0:01:14.5]} 25... Bd7 {[%clk 0:00:53.2]} 26. Bxd7
{[%clk 0:01:05.2]} 26... Rxd7 {[%clk 0:00:54.1]} 27. Rc6 {[%clk 0:01:05.3]}
27... Ra7 {[%clk 0:00:53]} 28. Rxd6 {[%clk 0:00:56.9]} 28... Rxa4 {[%clk
0:00:53.1]} 29. Rxb6 {[%clk 0:00:56.7]} 29... Ra1+ {[%clk 0:00:52.3]} 30. Nf1
{[%clk 0:00:56.8]} 30... Rb1 {[%clk 0:00:47.5]} 31. g3 {[%clk 0:00:43]} 31... f5
{[%clk 0:00:47]} 32. Kg2 {[%clk 0:00:42.9]} 32... f4 {[%clk 0:00:47.5]} 33. gxf4
{[%clk 0:00:42.1]} 33... gxf4 {[%clk 0:00:47.6]} 34. Nd2 {[%clk 0:00:36.1]}
34... Rd1 {[%clk 0:00:34.9]} 35. Nf3 {[%clk 0:00:36.1]} 35... fxe3 {[%clk
0:00:31.3]} 36. fxe3 {[%clk 0:00:37]} 36... Rb1 {[%clk 0:00:27.9]} 37. b4 {[%clk
0:00:33]} 37... Kf7 {[%clk 0:00:23.6]} 38. b5 {[%clk 0:00:32]} 38... Bf6 {[%clk
0:00:23.7]} 39. Kg3 {[%clk 0:00:31.5]} 39... Kg6 {[%clk 0:00:23.7]} 40. Kf4
{[%clk 0:00:31]} 40... Rf1 {[%clk 0:00:18.1]} 41. Rd6 {[%clk 0:00:28.5]} 41...
Kh5 {[%clk 0:00:10.7]} 42. Rxd5+ {[%clk 0:00:28.2]} 42... Bg5+ {[%clk
0:00:09.5]} 43. Ke4 {[%clk 0:00:26.4]} 43... Kg4 {[%clk 0:00:04.5]} 44. Nxg5
{[%clk 0:00:20.6]} 44... hxg5 {[%clk 0:00:05.4]} 45. h3+ {[%clk 0:00:18.4]}
45... Kh4 {[%clk 0:00:05.6]} 46. b6 {[%clk 0:00:17.4]} 46... Rb1 {[%clk
0:00:06.1]} 47. Rd6 {[%clk 0:00:17.1]} 47... Kxh3 {[%clk 0:00:06.7]} 48. Kf5
{[%clk 0:00:12.2]} 48... g4 {[%clk 0:00:06.8]} 49. Rh6+ {[%clk 0:00:11.9]} 49...
Kg3 {[%clk 0:00:06.5]} 50. Rg6 {[%clk 0:00:12.5]} 50... Kf3 {[%clk 0:00:07.1]}
51. e4 {[%clk 0:00:06.1]} 51... g3 {[%clk 0:00:06.8]} 52. d5 {[%clk 0:00:06.3]}
52... g2 {[%clk 0:00:07]} 53. e5 {[%clk 0:00:06.9]} 53... Rb4 {[%clk 0:00:06.2]}
54. d6 {[%clk 0:00:02.5]} 54... Rf4+ {[%clk 0:00:06.3]} 55. Ke6 {[%clk
0:00:02.3]} 55... Rg4 {[%clk 0:00:06.7]} 56. Rxg4 {[%clk 0:00:01.3]} 56... Kxg4
{[%clk 0:00:07.6]} 57. d7 {[%clk 0:00:01.9]} 57... g1=Q {[%clk 0:00:07.3]} 58.
d8=Q {[%clk 0:00:02.8]} 58... Qe3 {[%clk 0:00:05.5]} 59. Qc7 {[%clk 0:00:02.7]}
59... Kf3 {[%clk 0:00:06.4]} 60. Kd7 {[%clk 0:00:02.7]} 60... Qh6 {[%clk
0:00:05.7]} 61. e6 {[%clk 0:00:02.7]} 61... Qh3 {[%clk 0:00:05.1]} 62. Qd6
{[%clk 0:00:03]} 62... Qg4 {[%clk 0:00:05.4]} 63. Qc6+ {[%clk 0:00:03.5]} 63...
Kg3 {[%clk 0:00:05.2]} 64. Kc7 {[%clk 0:00:04.4]} 64... Qg7+ {[%clk 0:00:04.2]}
65. Qd7 {[%clk 0:00:04.7]} 65... Qc3+ {[%clk 0:00:04.3]} 66. Kb7 {[%clk
0:00:05.1]} 66... Qf3+ {[%clk 0:00:04.7]} 67. Qc6 {[%clk 0:00:05.2]} 67... Qf6
{[%clk 0:00:04.9]} 68. Qd6+ {[%clk 0:00:05.4]} 68... Kg4 {[%clk 0:00:05]} 69.
Qd7 {[%clk 0:00:05.9]} 69... Qf3+ {[%clk 0:00:04.4]} 70. Kc8 {[%clk 0:00:05.7]}
70... Kg5 {[%clk 0:00:02.9]} 71. e7 {[%clk 0:00:05.8]} 71... Qa8+ {[%clk
0:00:03.6]} 72. Kc7 {[%clk 0:00:05.6]} 72... Qg8 {[%clk 0:00:01.7]} 73. e8=Q
{[%clk 0:00:05.9]} 73... Qxe8 {[%clk 0:00:02.2]} 74. Qxe8 {[%clk 0:00:05.4]}
74... Kf6 {[%clk 0:00:03.1]} 75. Qd7 {[%clk 0:00:05.5]} 75... Kg5 {[%clk
0:00:04]} 76. b7 {[%clk 0:00:06.1]} 76... Kf4 {[%clk 0:00:04.9]} 77. b8=Q {[%clk
0:00:06.9]} 1-0

[Event "Late-Titled-Tuesday-Blitz-March-05-2024"]
[Site "Chess.com"]
[Date "2024.03.05"]
[Round "5"]
[White "thesupera12"]
[Black "MaiqMaster"]
[Result "1/2-1/2"]
[WhiteElo "2490"]
[BlackElo "2327"]
[TimeControl "180+1"]
[EndTime "14:56:25 PST"]
[Termination "Game drawn by stalemate"]

1. d4 {[%clk 0:03:00.9]} 1... d5 {[%clk 0:02:59.5]} 2. Bg5 {[%clk 0:02:58.8]}
2... f6 {[%clk 0:02:56.1]} 3. Bf4 {[%clk 0:02:58.4]} 3... c5 {[%clk 0:02:52.7]}
4. c4 {[%clk 0:02:55.9]} 4... cxd4 {[%clk 0:02:46.1]} 5. cxd5 {[%clk 0:02:49]}
5... Qxd5 {[%clk 0:02:38.1]} 6. Nc3 {[%clk 0:02:39.3]} 6... Qa5 {[%clk
0:02:33.3]} 7. Qxd4 {[%clk 0:02:38.7]} 7... e5 {[%clk 0:02:30.8]} 8. Qe3 {[%clk
0:02:38.1]} 8... Bc5 {[%clk 0:02:18.2]} 9. Qe4 {[%clk 0:02:37.8]} 9... Ne7
{[%clk 0:02:16]} 10. Bd2 {[%clk 0:02:32]} 10... Qb6 {[%clk 0:01:34.8]} 11. e3
{[%clk 0:02:25.7]} 11... Bf5 {[%clk 0:01:31.5]} 12. Qa4+ {[%clk 0:02:22.4]}
12... Nbc6 {[%clk 0:01:28.7]} 13. Qb5 {[%clk 0:02:17.9]} 13... O-O {[%clk
0:01:23.8]} 14. Bc4+ {[%clk 0:02:16.3]} 14... Kh8 {[%clk 0:01:23.4]} 15. Nge2
{[%clk 0:02:16.8]} 15... Qxb5 {[%clk 0:01:20.7]} 16. Bxb5 {[%clk 0:02:16]} 16...
a6 {[%clk 0:01:20.5]} 17. Bxc6 {[%clk 0:02:15]} 17... Nxc6 {[%clk 0:01:21.4]}
18. O-O {[%clk 0:02:15.6]} 18... Rfd8 {[%clk 0:01:20.6]} 19. Bc1 {[%clk
0:02:07.7]} 19... b5 {[%clk 0:01:12.6]} 20. Ng3 {[%clk 0:02:06.1]} 20... Bd3
{[%clk 0:01:09.4]} 21. Rd1 {[%clk 0:02:05.6]} 21... b4 {[%clk 0:01:02.8]} 22.
Na4 {[%clk 0:02:03.5]} 22... Ba7 {[%clk 0:01:02.6]} 23. Re1 {[%clk 0:01:44.5]}
23... Rac8 {[%clk 0:00:41.5]} 24. b3 {[%clk 0:01:44.8]} 24... Ne7 {[%clk
0:00:38.9]} 25. e4 {[%clk 0:01:42.1]} 25... Rc2 {[%clk 0:00:36.5]} 26. Be3
{[%clk 0:01:42.5]} 26... Bxe3 {[%clk 0:00:34.7]} 27. Rxe3 {[%clk 0:01:43.4]}
27... Bb5 {[%clk 0:00:34.1]} 28. h4 {[%clk 0:01:41.2]} 28... Nc6 {[%clk
0:00:31.3]} 29. Nf5 {[%clk 0:01:36.2]} 29... Rdd2 {[%clk 0:00:27.5]} 30. Rf3
{[%clk 0:01:31.6]} 30... Be2 {[%clk 0:00:20.6]} 31. Rg3 {[%clk 0:01:21]} 31...
g6 {[%clk 0:00:19.1]} 32. Ne3 {[%clk 0:01:19.4]} 32... Rxa2 {[%clk 0:00:19.2]}
33. Rc1 {[%clk 0:01:20]} 33... Bb5 {[%clk 0:00:17.6]} 34. Nd5 {[%clk 0:01:17.2]}
34... Rxf2 {[%clk 0:00:16.9]} 35. Rxc6 {[%clk 0:01:10.7]} 35... Bxc6 {[%clk
0:00:16.5]} 36. Nxb4 {[%clk 0:01:11.4]} 36... Bxe4 {[%clk 0:00:14.9]} 37. Nxa2
{[%clk 0:01:06.3]} 37... Rxa2 {[%clk 0:00:15.8]} 38. Kh2 {[%clk 0:01:00.9]}
38... Kg7 {[%clk 0:00:15.4]} 39. Nc3 {[%clk 0:01:01.2]} 39... Bb1 {[%clk
0:00:07.4]} 40. Nxa2 {[%clk 0:01:00.7]} 40... Bxa2 {[%clk 0:00:08.3]} 41. b4
{[%clk 0:01:01.2]} 41... Bc4 {[%clk 0:00:08.5]} 42. Rc3 {[%clk 0:01:01.8]} 42...
Bb5 {[%clk 0:00:08.6]} 43. Rc7+ {[%clk 0:01:01.2]} 43... Kh6 {[%clk 0:00:09.2]}
44. g4 {[%clk 0:01:02.1]} 44... g5 {[%clk 0:00:06]} 45. Kg3 {[%clk 0:01:01.3]}
45... gxh4+ {[%clk 0:00:06]} 46. Kxh4 {[%clk 0:01:02.2]} 46... Kg6 {[%clk
0:00:06.7]} 47. Re7 {[%clk 0:00:59.7]} 47... h6 {[%clk 0:00:06.8]} 48. Rb7
{[%clk 0:00:59.1]} 48... Bd3 {[%clk 0:00:07.1]} 49. Kg3 {[%clk 0:00:59]} 49...
f5 {[%clk 0:00:05.6]} 50. Rb6+ {[%clk 0:00:57.8]} 50... Kg5 {[%clk 0:00:05.5]}
51. gxf5 {[%clk 0:00:57.9]} 51... Kxf5 {[%clk 0:00:04]} 52. Rxh6 {[%clk
0:00:57.8]} 52... e4 {[%clk 0:00:04.7]} 53. Kf2 {[%clk 0:00:56.4]} 53... Ke5
{[%clk 0:00:04.9]} 54. Ke3 {[%clk 0:00:56.1]} 54... Kd5 {[%clk 0:00:05.3]} 55.
Rb6 {[%clk 0:00:50.5]} 55... Kc4 {[%clk 0:00:04.6]} 56. Rb8 {[%clk 0:00:50.5]}
56... Kb3 {[%clk 0:00:04.7]} 57. Kd4 {[%clk 0:00:49.2]} 57... Ka4 {[%clk
0:00:03.9]} 58. Kc5 {[%clk 0:00:40.6]} 58... e3 {[%clk 0:00:04.2]} 59. Re8
{[%clk 0:00:40]} 59... e2 {[%clk 0:00:04.5]} 60. Re3 {[%clk 0:00:40]} 60... Bb5
{[%clk 0:00:04.9]} 61. Re5 {[%clk 0:00:32.8]} 61... Bd3 {[%clk 0:00:05]} 62. Re3
{[%clk 0:00:29.9]} 62... Bb5 {[%clk 0:00:05.3]} 63. Re5 {[%clk 0:00:19.1]} 63...
Kb3 {[%clk 0:00:05.4]} 64. Re3+ {[%clk 0:00:14.6]} 64... Kc2 {[%clk 0:00:05.8]}
65. Kd4 {[%clk 0:00:11.8]} 65... Kd2 {[%clk 0:00:05.7]} 66. Rxe2+ {[%clk
0:00:10.9]} 66... Kxe2 {[%clk 0:00:05.9]} 67. Kc3 {[%clk 0:00:11.8]} 67... Ke3
{[%clk 0:00:06.1]} 68. Kb2 {[%clk 0:00:12.7]} 68... Kd4 {[%clk 0:00:06.8]} 69.
Ka1 {[%clk 0:00:13.6]} 69... Kc4 {[%clk 0:00:07.7]} 70. Kb1 {[%clk 0:00:14.4]}
70... Kb3 {[%clk 0:00:07.3]} 71. Ka1 {[%clk 0:00:15.3]} 71... Bd3 {[%clk
0:00:06.5]} 72. b5 {[%clk 0:00:13.4]} 72... a5 {[%clk 0:00:06.3]} 73. b6 {[%clk
0:00:12.7]} 73... Be4 {[%clk 0:00:07.2]} 74. b7 {[%clk 0:00:12.5]} 74... Bxb7
{[%clk 0:00:08.1]} 75. Kb1 {[%clk 0:00:13]} 75... a4 {[%clk 0:00:08.8]} 76. Ka1
{[%clk 0:00:13.8]} 76... a3 {[%clk 0:00:09.7]} 77. Kb1 {[%clk 0:00:14.7]} 77...
Be4+ {[%clk 0:00:10.1]} 78. Ka1 {[%clk 0:00:15.6]} 78... a2 {[%clk 0:00:10.4]}
1/2-1/2

[Event "Late-Titled-Tuesday-Blitz-March-05-2024"]
[Site "Chess.com"]
[Date "2024.03.05"]
[Round "5"]
[White "Onthequiet"]
[Black "AndresDelgado77"]
[Result "0-1"]
[WhiteElo "2418"]
[BlackElo "2303"]
[TimeControl "180+1"]
[EndTime "14:56:34 PST"]
[Termination "AndresDelgado77 won by resignation"]

1. d4 {[%clk 0:02:59.8]} 1... Nf6 {[%clk 0:02:59.6]} 2. Nf3 {[%clk 0:02:58.5]}
2... g6 {[%clk 0:02:56.8]} 3. Bg5 {[%clk 0:02:58.8]} 3... Ne4 {[%clk 0:02:54.4]}
4. Bh4 {[%clk 0:02:58.5]} 4... c5 {[%clk 0:02:54.4]} 5. c3 {[%clk 0:02:58.4]}
5... Qb6 {[%clk 0:02:50.9]} 6. Qb3 {[%clk 0:02:57.9]} 6... d6 {[%clk 0:02:36.6]}
7. e3 {[%clk 0:02:57.7]} 7... Nc6 {[%clk 0:02:29.4]} 8. d5 {[%clk 0:02:49.6]}
8... Na5 {[%clk 0:02:24.3]} 9. Qxb6 {[%clk 0:02:41.5]} 9... axb6 {[%clk
0:02:23.7]} 10. Nbd2 {[%clk 0:02:40.2]} 10... Nxd2 {[%clk 0:02:17.7]} 11. Nxd2
{[%clk 0:02:41.1]} 11... Bg7 {[%clk 0:02:18.1]} 12. Bb5+ {[%clk 0:02:40.1]}
12... Bd7 {[%clk 0:02:08]} 13. a4 {[%clk 0:02:37.2]} 13... e6 {[%clk 0:01:42.3]}
14. dxe6 {[%clk 0:02:34.3]} 14... fxe6 {[%clk 0:01:40.9]} 15. O-O {[%clk
0:02:27.5]} 15... Bc6 {[%clk 0:01:07.9]} 16. Rfd1 {[%clk 0:02:20.9]} 16... Kd7
{[%clk 0:01:05.9]} 17. Ne4 {[%clk 0:02:17.2]} 17... d5 {[%clk 0:01:00.4]} 18.
Nf6+ {[%clk 0:01:59.5]} 18... Bxf6 {[%clk 0:00:52.2]} 19. Bxf6 {[%clk
0:02:00.4]} 19... Rhf8 {[%clk 0:00:52.6]} 20. Be5 {[%clk 0:02:00]} 20... Bxb5
{[%clk 0:00:51]} 21. axb5 {[%clk 0:01:59.4]} 21... Nc4 {[%clk 0:00:51.3]} 22.
Bg7 {[%clk 0:01:56.4]} 22... Rxa1 {[%clk 0:00:44.2]} 23. Rxa1 {[%clk 0:01:55.1]}
23... Rg8 {[%clk 0:00:44.1]} 24. b3 {[%clk 0:01:48]} 24... Nd2 {[%clk
0:00:37.9]} 25. Be5 {[%clk 0:01:41.5]} 25... Nxb3 {[%clk 0:00:33.2]} 26. Ra7
{[%clk 0:01:40.9]} 26... Na5 {[%clk 0:00:33]} 27. h4 {[%clk 0:01:31.4]} 27... h6
{[%clk 0:00:28.8]} 28. Kh2 {[%clk 0:01:30.5]} 28... g5 {[%clk 0:00:28.1]} 29. h5
{[%clk 0:01:30.3]} 29... Rf8 {[%clk 0:00:25.3]} 30. f4 {[%clk 0:01:29.6]} 30...
gxf4 {[%clk 0:00:17]} 31. Bxf4 {[%clk 0:01:30.5]} 31... Rf6 {[%clk 0:00:15.9]}
32. g4 {[%clk 0:01:30.4]} 32... e5 {[%clk 0:00:11.1]} 33. Bxe5 {[%clk
0:01:29.2]} 33... Re6 {[%clk 0:00:11.3]} 34. Bf4 {[%clk 0:01:28.9]} 34... Re4
{[%clk 0:00:10.1]} 35. Ra8 {[%clk 0:01:27.7]} 35... Nc4 {[%clk 0:00:06.3]} 36.
Bxh6 {[%clk 0:01:27.1]} 36... Rxg4 {[%clk 0:00:05.9]} 37. Bf4 {[%clk 0:01:26.2]}
37... Rh4+ {[%clk 0:00:05.5]} 38. Kg3 {[%clk 0:01:26.7]} 38... Rxh5 {[%clk
0:00:05.9]} 39. Rb8 {[%clk 0:01:25.5]} 39... Rh1 {[%clk 0:00:04.1]} 40. Rxb7+
{[%clk 0:01:25.1]} 40... Ke6 {[%clk 0:00:04.2]} 41. Rc7 {[%clk 0:01:06.1]} 41...
Rb1 {[%clk 0:00:03.3]} 42. Rc6+ {[%clk 0:01:05.3]} 42... Kf5 {[%clk 0:00:03.4]}
43. Rh6 {[%clk 0:01:03]} 43... Rxb5 {[%clk 0:00:02.4]} 44. Kf3 {[%clk
0:01:03.9]} 44... Nd2+ {[%clk 0:00:02.1]} 45. Ke2 {[%clk 0:01:03.8]} 45... Ne4
{[%clk 0:00:02.5]} 46. Rh5+ {[%clk 0:01:03.2]} 46... Ke6 {[%clk 0:00:02.4]} 47.
Kd3 {[%clk 0:01:03.3]} 47... Nf2+ {[%clk 0:00:01.7]} 48. Kc2 {[%clk 0:01:02.5]}
48... c4 {[%clk 0:00:01.1]} 49. Re5+ {[%clk 0:01:02.5]} 49... Kf6 {[%clk
0:00:01.2]} 50. Re8 {[%clk 0:01:02.4]} 50... Ne4 {[%clk 0:00:01.5]} 51. Rf8+
{[%clk 0:01:01.8]} 51... Ke6 {[%clk 0:00:01.8]} 52. Rd8 {[%clk 0:01:02.2]} 52...
Kf5 {[%clk 0:00:02.3]} 53. Rd7 {[%clk 0:01:01.2]} 53... Kg4 {[%clk 0:00:01.7]}
54. Rf7 {[%clk 0:01:00.8]} 54... Kf3 {[%clk 0:00:02.2]} 55. Bh6+ {[%clk
0:01:00.6]} 55... Ke2 {[%clk 0:00:02.6]} 56. Rg7 {[%clk 0:00:59.5]} 56... Nf2
{[%clk 0:00:02.7]} 57. Rg2 {[%clk 0:00:58.4]} 57... Kf3 {[%clk 0:00:02.6]} 58.
Rg8 {[%clk 0:00:56.9]} 58... Ng4 {[%clk 0:00:02.9]} 59. Bf8 {[%clk 0:00:56.2]}
59... Nxe3+ {[%clk 0:00:02.8]} 60. Kc1 {[%clk 0:00:55.7]} 60... Ke4 {[%clk
0:00:02.9]} 61. Bb4 {[%clk 0:00:55.4]} 61... Kd3 {[%clk 0:00:02.9]} 62. Rg3
{[%clk 0:00:55.2]} 62... d4 {[%clk 0:00:02.8]} 63. Bf8 {[%clk 0:00:46.1]} 63...
dxc3 {[%clk 0:00:02.5]} 64. Bh6 {[%clk 0:00:45.4]} 64... Re5 {[%clk 0:00:02.2]}
65. Bf4 {[%clk 0:00:45]} 65... Re4 {[%clk 0:00:02.6]} 66. Bh6 {[%clk 0:00:45.1]}
66... b5 {[%clk 0:00:03.1]} 67. Rg6 {[%clk 0:00:45.6]} 67... b4 {[%clk
0:00:03.2]} 68. Rb6 {[%clk 0:00:46.5]} 68... b3 {[%clk 0:00:03.1]} 69. Rd6+
{[%clk 0:00:45.3]} 69... Rd4 {[%clk 0:00:03.2]} 70. Re6 {[%clk 0:00:45]} 70...
b2+ {[%clk 0:00:03.2]} 71. Kb1 {[%clk 0:00:45.1]} 71... Re4 {[%clk 0:00:03.4]}
72. Rd6+ {[%clk 0:00:44.3]} 72... Rd4 {[%clk 0:00:03.9]} 73. Re6 {[%clk
0:00:44.5]} 73... Nd5 {[%clk 0:00:04.3]} 74. Re1 {[%clk 0:00:44.1]} 74... Nb4
{[%clk 0:00:04.2]} 75. Rd1+ {[%clk 0:00:44]} 75... Ke4 {[%clk 0:00:04.8]} 76.
Re1+ {[%clk 0:00:44.1]} 76... Kd5 {[%clk 0:00:05.1]} 77. Re2 {[%clk 0:00:43.7]}
77... Rd3 {[%clk 0:00:05.3]} 78. Rxb2 {[%clk 0:00:40.9]} 78... cxb2 {[%clk
0:00:04.5]} 79. Kxb2 {[%clk 0:00:40.9]} 79... Rb3+ {[%clk 0:00:04.6]} 80. Kc1
{[%clk 0:00:40.9]} 80... Ke4 {[%clk 0:00:05.1]} 81. Kd2 {[%clk 0:00:41.8]} 81...
c3+ {[%clk 0:00:05]} 82. Kc1 {[%clk 0:00:41.7]} 82... Rb2 {[%clk 0:00:05.2]} 83.
Bg7 {[%clk 0:00:42.6]} 83... Kd3 {[%clk 0:00:05.4]} 84. Bxc3 {[%clk 0:00:42.3]}
84... Kxc3 {[%clk 0:00:05.2]} 0-1

[Event "Late-Titled-Tuesday-Blitz-March-05-2024"]
[Site "Chess.com"]
[Date "2024.03.05"]
[Round "5"]
[White "AccioChess"]
[Black "dosto07"]
[Result "1-0"]
[WhiteElo "2408"]
[BlackElo "2507"]
[TimeControl "180+1"]
[EndTime "14:56:43 PST"]
[Termination "AccioChess won by resignation"]

1. e4 {[%clk 0:02:59.9]} 1... e5 {[%clk 0:02:59.3]} 2. Nf3 {[%clk 0:02:57.2]}
2... Nc6 {[%clk 0:02:59.9]} 3. Bb5 {[%clk 0:02:54.3]} 3... a6 {[%clk 0:02:59.6]}
4. Ba4 {[%clk 0:02:54.3]} 4... Nf6 {[%clk 0:03:00]} 5. O-O {[%clk 0:02:54.5]}
5... Be7 {[%clk 0:03:00.1]} 6. d3 {[%clk 0:02:53.4]} 6... b5 {[%clk 0:02:58.1]}
7. Bb3 {[%clk 0:02:52.8]} 7... d6 {[%clk 0:02:59]} 8. a4 {[%clk 0:02:51.9]} 8...
b4 {[%clk 0:02:58.5]} 9. a5 {[%clk 0:02:50.8]} 9... O-O {[%clk 0:02:58.4]} 10.
h3 {[%clk 0:02:41.4]} 10... Be6 {[%clk 0:02:58.4]} 11. c3 {[%clk 0:02:33.5]}
11... Qc8 {[%clk 0:02:52.9]} 12. Nbd2 {[%clk 0:02:26.9]} 12... Rb8 {[%clk
0:02:52.2]} 13. Bxe6 {[%clk 0:02:15.3]} 13... Qxe6 {[%clk 0:02:50]} 14. Nc4
{[%clk 0:02:12.9]} 14... bxc3 {[%clk 0:02:48]} 15. bxc3 {[%clk 0:02:12.4]} 15...
Nxe4 {[%clk 0:02:39.6]} 16. Qa4 {[%clk 0:02:00.4]} 16... d5 {[%clk 0:02:32]} 17.
dxe4 {[%clk 0:01:51.1]} 17... dxc4 {[%clk 0:02:31.2]} 18. Nd2 {[%clk 0:01:51]}
18... Rb5 {[%clk 0:02:17.3]} 19. Nxc4 {[%clk 0:01:50]} 19... Rc5 {[%clk
0:02:09]} 20. Na3 {[%clk 0:01:35.4]} 20... Rxa5 {[%clk 0:02:06.7]} 21. Qc2
{[%clk 0:01:33.9]} 21... Rb8 {[%clk 0:02:00.6]} 22. Bb2 {[%clk 0:01:28.7]} 22...
Qb3 {[%clk 0:01:56]} 23. Qxb3 {[%clk 0:01:22.1]} 23... Rxb3 {[%clk 0:01:55.9]}
24. Nc4 {[%clk 0:01:22.6]} 24... Rxa1 {[%clk 0:01:37.3]} 25. Rxa1 {[%clk
0:01:23.5]} 25... a5 {[%clk 0:01:35.1]} 26. Kf1 {[%clk 0:01:17.9]} 26... f6
{[%clk 0:01:28.3]} 27. Ke2 {[%clk 0:01:17.4]} 27... Kf7 {[%clk 0:01:28.1]} 28.
Kd3 {[%clk 0:01:16.6]} 28... Ke6 {[%clk 0:01:26.2]} 29. Kc2 {[%clk 0:01:16.2]}
29... Rb5 {[%clk 0:01:26.7]} 30. g4 {[%clk 0:00:54.5]} 30... g6 {[%clk
0:01:26.2]} 31. f3 {[%clk 0:00:48.7]} 31... Bc5 {[%clk 0:01:21.3]} 32. h4 {[%clk
0:00:33.9]} 32... Be7 {[%clk 0:01:19.3]} 33. Rh1 {[%clk 0:00:31.1]} 33... Rb8
{[%clk 0:01:14.4]} 34. h5 {[%clk 0:00:30.1]} 34... g5 {[%clk 0:01:11.9]} 35. Rd1
{[%clk 0:00:25.1]} 35... Ra8 {[%clk 0:00:58.1]} 36. Ne3 {[%clk 0:00:20.9]} 36...
a4 {[%clk 0:00:55.8]} 37. Nd5 {[%clk 0:00:20.6]} 37... Bd6 {[%clk 0:00:55.8]}
38. Ra1 {[%clk 0:00:20.5]} 38... Ne7 {[%clk 0:00:53.2]} 39. Ne3 {[%clk 0:00:17]}
39... Bc5 {[%clk 0:00:48.8]} 40. Nc4 {[%clk 0:00:16.8]} 40... Nc8 {[%clk
0:00:47.1]} 41. Ba3 {[%clk 0:00:15.2]} 41... Bxa3 {[%clk 0:00:45.8]} 42. Nxa3
{[%clk 0:00:14.7]} 42... Nb6 {[%clk 0:00:43.9]} 43. Nb5 {[%clk 0:00:11.9]} 43...
Kd7 {[%clk 0:00:43.9]} 44. Rd1+ {[%clk 0:00:10.3]} 44... Kc6 {[%clk 0:00:44]}
45. Na3 {[%clk 0:00:10.4]} 45... Rb8 {[%clk 0:00:38.4]} 46. Rb1 {[%clk
0:00:05.3]} 46... Nd7 {[%clk 0:00:36.5]} 47. Rb4 {[%clk 0:00:04.5]} 47... Rxb4
{[%clk 0:00:33.3]} 48. cxb4 {[%clk 0:00:05.4]} 48... Nb6 {[%clk 0:00:30.7]} 49.
Kc3 {[%clk 0:00:05.4]} 49... Nc8 {[%clk 0:00:27.8]} 50. Nc4 {[%clk 0:00:03.8]}
50... Nd6 {[%clk 0:00:27]} 51. Ne3 {[%clk 0:00:03.2]} 51... Nb5+ {[%clk
0:00:25.6]} 52. Kb2 {[%clk 0:00:03.1]} 52... Nd4 {[%clk 0:00:26.5]} 53. Nd5
{[%clk 0:00:03.2]} 53... Nxf3 {[%clk 0:00:24.2]} 54. Nxf6 {[%clk 0:00:03.5]}
54... Nh2 {[%clk 0:00:19.5]} 55. Nxh7 {[%clk 0:00:03.7]} 55... Nxg4 {[%clk
0:00:19.6]} 56. Nf8 {[%clk 0:00:03.4]} 56... Kd6 {[%clk 0:00:16.4]} 57. Nh7
{[%clk 0:00:03]} 57... Nf2 {[%clk 0:00:13.7]} 58. Nxg5 {[%clk 0:00:03.1]} 58...
Ke7 {[%clk 0:00:13.3]} 59. h6 {[%clk 0:00:03.4]} 59... Kf6 {[%clk 0:00:10.9]}
60. h7 {[%clk 0:00:03.8]} 60... Kg7 {[%clk 0:00:11.1]} 61. Ka3 {[%clk
0:00:04.2]} 61... Nd3 {[%clk 0:00:05.8]} 62. Kxa4 {[%clk 0:00:04.6]} 62... Nf4
{[%clk 0:00:04.9]} 63. Kb5 {[%clk 0:00:04.4]} 63... Ng6 {[%clk 0:00:04.7]} 64.
Kc6 {[%clk 0:00:04.4]} 64... Ne7+ {[%clk 0:00:03.7]} 65. Kxc7 {[%clk 0:00:03.9]}
65... Ng6 {[%clk 0:00:04]} 66. Kd6 {[%clk 0:00:03.7]} 66... Kf6 {[%clk
0:00:04.9]} 67. Nf3 {[%clk 0:00:02.9]} 67... Kg7 {[%clk 0:00:04.2]} 68. Nxe5
{[%clk 0:00:03.2]} 68... Nf4 {[%clk 0:00:04]} 69. Nc6 {[%clk 0:00:03.2]} 69...
Ne2 {[%clk 0:00:04.8]} 70. b5 {[%clk 0:00:03.3]} 70... Nc3 {[%clk 0:00:05.7]}
71. b6 {[%clk 0:00:02.5]} 71... Nb5+ {[%clk 0:00:06.2]} 72. Kd7 {[%clk
0:00:02.3]} 72... Kxh7 {[%clk 0:00:05.4]} 73. b7 {[%clk 0:00:03.2]} 73... Nd4
{[%clk 0:00:04.9]} 74. b8=Q {[%clk 0:00:04.1]} 74... Nxc6 {[%clk 0:00:04.2]} 75.
Qh2+ {[%clk 0:00:04.1]} 75... Kg6 {[%clk 0:00:03.7]} 76. Kxc6 {[%clk 0:00:05]}
76... Kf6 {[%clk 0:00:03.8]} 77. Qe2 {[%clk 0:00:05.9]} 77... Ke5 {[%clk
0:00:04]} 78. Kc5 {[%clk 0:00:06.8]} 78... Ke6 {[%clk 0:00:04.2]} 79. Kc4 {[%clk
0:00:07.7]} 79... Ke5 {[%clk 0:00:04.6]} 80. Kc3 {[%clk 0:00:07.8]} 80... Ke6
{[%clk 0:00:05.1]} 81. Kd3 {[%clk 0:00:08.7]} 81... Ke5 {[%clk 0:00:05.5]} 82.
Ke3 {[%clk 0:00:09.5]} 82... Ke6 {[%clk 0:00:05.9]} 83. Qc4+ {[%clk 0:00:10.1]}
83... Kd6 {[%clk 0:00:05.8]} 84. Qd5+ {[%clk 0:00:11]} 84... Ke7 {[%clk
0:00:05]} 85. e5 {[%clk 0:00:11.9]} 85... Ke8 {[%clk 0:00:05]} 86. Ke4 {[%clk
0:00:12.5]} 86... Ke7 {[%clk 0:00:05.4]} 87. Kf5 {[%clk 0:00:13.2]} 87... Ke8
{[%clk 0:00:05.7]} 88. Qe6+ {[%clk 0:00:13.7]} 88... Kd8 {[%clk 0:00:05.8]} 89.
Kf6 {[%clk 0:00:14]} 89... Kc7 {[%clk 0:00:06.1]} 90. Qe7+ {[%clk 0:00:14.5]}
90... Kb6 {[%clk 0:00:06.3]} 91. Qd6+ {[%clk 0:00:15.2]} 91... Kb5 {[%clk
0:00:06.2]} 92. e6 {[%clk 0:00:16.1]} 92... Kc4 {[%clk 0:00:06.3]} 93. e7 {[%clk
0:00:17]} 93... Kc3 {[%clk 0:00:06.2]} 94. e8=Q {[%clk 0:00:17.9]} 94... Kc2
{[%clk 0:00:06.8]} 95. Qec6+ {[%clk 0:00:18.6]} 1-0